fUSD/lending_fUSD_20260108
["ID","MTS","AMOUNT","RATE_DAILY","PERIOD"]
[401068294,1767900646921,-150.0,0.00017303,2]
[401068295,1767900646930,-585.83,0.00017314,2]
[401068296,1767900646939,-500.0,0.00017314,2]
[401068297,1767900646949,-500.0,0.00017314,2]
[401068298,1767900646958,-500.0,0.00017314,2]
[401068299,1767900646967,-500.0,0.00017314,2]
[401068300,1767900646976,-500.0,0.00017314,2]
[401068301,1767900646986,-2751.0,0.00017315,2]
[401068302,1767900646995,-1000.0,0.00017351,2]
[401068303,1767900647005,-833.0,0.0001736,2]
[401068304,1767900647014,-162.0,0.0001736,2]
[401068305,1767900647024,-162.0,0.0001736,2]
[401068306,1767900647033,-833.0,0.0001736,2]
[401068307,1767900647042,-833.0,0.0001736,2]
[401068308,1767900647052,-833.0,0.0001736,2]
[401068309,1767900647065,-833.0,0.0001736,2]
[401068310,1767900647075,-162.0,0.0001736,2]
[401068311,1767900647084,-833.0,0.0001736,2]
[401068312,1767900647095,-162.0,0.0001736,2]
[401068313,1767900647104,-833.0,0.0001736,2]
[401068314,1767900647113,-833.0,0.0001736,2]
[401068315,1767900647123,-552.0,0.0001736,2]
[401068316,1767900647132,-2751.0,0.0001737,2]
[401068317,1767900647141,-1000.0,0.000174,2]
[401068318,1767900647150,-2751.0,0.00017424,2]
[401068319,1767900647160,-168.52,0.00017426,2]
[401068320,1767900647169,-150.0,0.00017432,2]
[401068321,1767900647179,-2770.75099502,0.00017479,2]
[401068322,1767900647188,-1733.0,0.00017486,2]
[401068323,1767900647198,-1600.92502348,0.000175,2]
[401068324,1767900647208,-3000.0,0.00017502,2]
[401068325,1767900647217,-3000.0,0.00017502,2]
[401068326,1767900647227,-3000.0,0.00017502,2]
[401068327,1767900647236,-1000.0,0.00017511,2]
[401068328,1767900647246,-1000.0,0.00017514,2]
[401068329,1767900647255,-150.0,0.00017515,2]
[401068330,1767900647265,-1000.0,0.00017529,2]
[401068331,1767900647275,-3868.4,0.00017534,2]
[401068332,1767900647286,-1042.30773041,0.00017534,2]
[401068333,1767900647296,-1000.0,0.00017552,2]
[401068334,1767900647307,-157.72323008,0.00017597,2]
[401068335,1767900647316,-1733.0,0.00017602,2]
[401068336,1767900647326,-150.0,0.00017611,2]
[401068337,1767900647336,-705.01,0.00017639,2]
[401068338,1767900647345,-14991.4518794,0.0001764,2]
[401068339,1767900647354,-151.0,0.00017647,2]
[401068340,1767900647364,-151.0,0.00017647,2]
[401068341,1767900647374,-574.12855637,0.00017647,2]
[401068342,1767900647383,-293.26916709,0.00017647,2]
[401068343,1767900647393,-311.1,0.00017647,2]
[401068344,1767900647402,-1000.0,0.00017664,2]
[401068345,1767900647412,-162.0,0.0001768,2]
[401068346,1767900647422,-162.0,0.0001768,2]
[401068347,1767900647432,-162.0,0.0001768,2]
[401068348,1767900647442,-162.0,0.0001768,2]
[401068349,1767900647454,-833.0,0.0001768,2]
[401068350,1767900647464,-833.0,0.0001768,2]
[401068351,1767900647474,-833.0,0.0001768,2]
[401068352,1767900647484,-833.0,0.0001768,2]
[401068353,1767900647494,-833.0,0.0001768,2]
[401068354,1767900647503,-833.0,0.0001768,2]
[401068355,1767900647513,-162.0,0.0001768,2]
[401068356,1767900647522,-833.0,0.0001768,2]
[401068357,1767900647532,-833.0,0.0001768,2]
[401068358,1767900647541,-162.0,0.0001768,2]
[401068359,1767900647551,-833.0,0.0001768,2]
[401068360,1767900647561,-162.0,0.0001768,2]
[401068361,1767900647571,-162.0,0.0001768,2]
[401068362,1767900647581,-162.0,0.0001768,2]
[401068363,1767900647597,-211.30647502,0.00017685,2]
[401068364,1767900647615,-190.04272048,0.00017687,3]
[401068365,1767900647626,-211.88264941,0.00017687,2]
[401068366,1767900647636,-8777.9276541,0.00017699,2]
[401068367,1767900647645,-628.5623616,0.000177,2]
[401068368,1767900647655,-25000.0,0.00017733,3]
[401068369,1767900647664,-25000.0,0.00017742,3]
[401068370,1767900647674,-150.0,0.00017749,2]
[401068371,1767900647684,-25000.0,0.0001775,3]
[401068372,1767900647693,-1000.0,0.00017753,2]
[401068373,1767900647704,-1000.0,0.00017756,2]
[401068374,1767900647714,-150.0,0.00017757,2]
[401068375,1767900647723,-505.03291198,0.00017758,2]
[401068376,1767900647733,-25000.0,0.00017759,3]
[401068377,1767900647742,-1000.0,0.00017768,2]
[401068378,1767900647752,-25000.0,0.00017768,3]
[401068379,1767900647762,-25000.0,0.00017777,3]
[401068380,1767900647771,-25000.0,0.00017786,3]
[401068381,1767900647780,-1000.0,0.00017787,2]
[401068382,1767900647791,-1733.0,0.00017789,2]
[401068383,1767900647800,-25000.0,0.00017794,3]
[401068384,1767900647810,-150.0,0.00017799,2]
[401068385,1767900647819,-8777.9276541,0.000178,2]
[401068386,1767900647828,-25000.0,0.00017803,3]
[401068387,1767900647838,-3868.4,0.00017808,2]
[401068388,1767900647848,-25000.0,0.00017812,3]
[401068389,1767900647857,-1000.0,0.00017813,2]
[401068390,1767900647866,-500.0,0.00017819,2]
[401068391,1767900647876,-500.0,0.00017819,2]
[401068392,1767900647886,-568.35,0.00017819,2]
[401068393,1767900647896,-758.96088212,0.0001782,2]
[401068394,1767900647907,-25000.0,0.00017821,3]
[401068395,1767900647917,-25000.0,0.0001783,3]
[401068396,1767900647926,-2563.74337966,0.0001783,2]
[401068397,1767900647936,-25000.0,0.00017838,3]
[401068398,1767900647946,-1733.0,0.00017839,2]
[401068399,1767900647955,-1810.70345785,0.00017842,2]
[401068400,1767900647966,-1411.0,0.00017844,2]
[401068401,1767900647976,-820.0305175,0.00017844,2]
[401068402,1767900647985,-788.0,0.00017845,2]
[401068403,1767900647995,-25000.0,0.00017847,3]
[401068404,1767900648006,-1810.70345783,0.00017854,2]
[401068405,1767900648015,-2000.0,0.00017855,2]
[401068406,1767900648025,-200.0,0.00017855,2]
[401068407,1767900648034,-200.0,0.00017856,2]
[401068408,1767900648044,-2000.0,0.00017856,2]
[401068409,1767900648053,-200.0,0.00017856,2]
[401068410,1767900648063,-200.0,0.00017856,2]
[401068411,1767900648073,-25000.0,0.00017856,3]
[401068412,1767900648083,-1000.0,0.00017858,2]
[401068413,1767900648094,-1000.0,0.00017864,2]
[401068414,1767900648103,-25000.0,0.00017865,3]
[401068415,1767900648112,-1810.70345783,0.00017865,2]
[401068416,1767900648122,-1000.0,0.00017866,2]
[401068417,1767900648131,-25000.0,0.00017874,3]
[401068418,1767900648141,-1810.70345783,0.00017877,2]
[401068419,1767900648151,-25000.0,0.00017882,3]
[401068420,1767900648161,-1810.70345783,0.00017888,2]
[401068421,1767900648170,-25000.0,0.00017891,3]
[401068422,1767900648179,-200.150002,0.00017897,2]
[401068423,1767900648190,-1093.33,0.00017899,2]
[401068424,1767900648201,-500.0,0.00017899,2]
[401068425,1767900648210,-1183.75176821,0.000179,2]
[401068426,1767900648220,-25000.0,0.000179,3]
[401068427,1767900648229,-18512.28772443,0.000179,2]
[401068428,1767900648239,-13072.17915059,0.000179,2]
[401068429,1767900648248,-8777.9276541,0.000179,2]
[401068430,1767900648258,-1810.70345783,0.000179,2]
[401068431,1767900648268,-408.3664128,0.000179,2]
[401068432,1767900648277,-16362.0,0.000179,2]
[401068433,1767900648287,-1000.0,0.00017901,2]
[401068434,1767900648297,-765.32,0.00017915,2]
[401068435,1767900648306,-1000.0,0.0001793,2]
[401068436,1767900648316,-12920.9464244,0.0001794,2]
[401068437,1767900648326,-585.83,0.00017941,2]
[401068438,1767900648335,-585.83,0.00017941,2]
[401068439,1767900648345,-1093.33,0.00017941,2]
[401068440,1767900648354,-1093.33,0.00017941,2]
[401068441,1767900648363,-500.0,0.00017941,2]
[401068442,1767900648373,-500.0,0.00017941,2]
[401068443,1767900648383,-1000.0,0.00017941,2]
[401068444,1767900648393,-500.0,0.00017941,2]
[401068445,1767900648402,-500.0,0.00017941,2]
[401068446,1767900648411,-500.0,0.00017941,2]
[401068447,1767900648421,-500.0,0.00017941,2]
[401068448,1767900648430,-500.0,0.00017941,2]
[401068449,1767900648440,-500.0,0.00017941,2]
[401068450,1767900648449,-500.0,0.00017941,2]
[401068451,1767900648458,-500.0,0.00017941,2]
[401068452,1767900648468,-575.35243908,0.00017941,2]
[401068453,1767900648477,-705.01,0.00017941,2]
[401068454,1767900648487,-705.01,0.00017941,2]
[401068455,1767900648496,-705.01,0.00017941,2]
[401068456,1767900648506,-3556.177694,0.00017942,2]
[401068457,1767900648515,-645875.5455439,0.00017942,2]
[401068458,1767900648526,-156.73208,0.00017942,2]
[401068459,1767900648535,-151.0,0.00017942,2]
[401068460,1767900648545,-151.0,0.00017942,2]
[401068461,1767900648555,-1144.4992786,0.00017942,2]
[401068462,1767900648564,-161.449368,0.00017942,2]
[401068463,1767900648574,-151.0,0.00017942,2]
[401068464,1767900648583,-167.184503,0.00017942,2]
[401068465,1767900648596,-151.0,0.00017942,2]
[401068466,1767900648606,-10791.5880031,0.00017942,2]
[401068467,1767900648615,-151.0,0.00017942,2]
[401068468,1767900648624,-151.0,0.00017942,2]
[401068469,1767900648635,-151.0,0.00017942,2]
[401068470,1767900648645,-151.0,0.00017942,2]
[401068471,1767900648655,-196.054169,0.00017942,2]
[401068472,1767900648665,-151.0,0.00017942,2]
[401068473,1767900648675,-196.054169,0.00017942,2]
[401068474,1767900648683,-151.0,0.00017942,2]
[401068475,1767900648693,-196.054169,0.00017942,2]
[401068476,1767900648703,-151.0,0.00017942,2]
[401068477,1767900648713,-196.054169,0.00017942,2]
[401068478,1767900648723,-374.563037,0.00017942,2]
[401068479,1767900648732,-374.563037,0.00017942,2]
[401068480,1767900648742,-374.563037,0.00017942,2]
[401068481,1767900648751,-374.563037,0.00017942,2]
[401068482,1767900648761,-1000.0,0.00017947,2]
[401068483,1767900648770,-1733.0,0.00017947,2]
[401068484,1767900648779,-1000.0,0.00017954,2]
[401068485,1767900648789,-245.0,0.00017964,2]
[401068486,1767900648799,-585.83,0.00017969,2]
[401068487,1767900648808,-500.0,0.00017969,2]
[401068488,1767900648818,-500.0,0.00017969,2]
[401068489,1767900648827,-500.0,0.00017969,2]
[401068490,1767900648837,-500.0,0.00017969,2]
[401068491,1767900648846,-500.0,0.0001797,2]
[401068492,1767900648855,-1000.0,0.0001797,2]
[401068493,1767900648864,-500.0,0.0001797,2]
[401068494,1767900648873,-1000.0,0.0001797,2]
[401068495,1767900648883,-500.0,0.0001797,2]
[401068496,1767900648892,-1000.0,0.0001797,2]
[401068497,1767900648902,-500.0,0.0001797,2]
[401068498,1767900648911,-1000.0,0.0001797,2]
[401068499,1767900648920,-584.41347442,0.0001797,2]
[401068500,1767900648931,-1000.0,0.0001797,2]
[401068501,1767900648941,-1000.0,0.0001797,2]
[401068502,1767900648950,-1446.54474908,0.0001797,2]
[401068503,1767900648960,-1000.0,0.0001797,2]
[401068504,1767900648970,-500.0,0.0001797,2]
[401068505,1767900648979,-1093.33,0.00017971,2]
[401068506,1767900648988,-500.0,0.00017971,2]
[401068507,1767900648998,-1000.0,0.00017971,2]
[401068508,1767900649008,-8200.0,0.00017973,2]
[401068509,1767900649018,-500.0,0.00017973,2]
[401068510,1767900649027,-500.0,0.00017973,2]
[401068511,1767900649037,-500.0,0.00017973,2]
[401068512,1767900649046,-500.0,0.00017973,2]
[401068513,1767900649055,-500.0,0.00017973,2]
[401068514,1767900649064,-500.0,0.00017973,2]
[401068515,1767900649073,-500.17178809,0.00017973,2]
[401068516,1767900649083,-513.02244381,0.00017973,2]
[401068517,1767900649092,-426.73386812,0.00017973,2]
[401068518,1767900649102,-159.904,0.00017973,2]
[401068519,1767900649111,-160.89060159,0.00017973,2]
[401068520,1767900649120,-504.45710441,0.00017973,2]
[401068521,1767900649129,-500.0,0.00017973,2]
[401068522,1767900649138,-504.24318867,0.00017973,2]
[401068523,1767900649147,-150.0,0.00017973,2]
[401068524,1767900649157,-500.0,0.00017973,2]
[401068525,1767900649166,-150.49880534,0.00017973,2]
[401068526,1767900649264,-500.0,0.00017973,2]
[401068527,1767900649274,-568.48476984,0.00017973,2]
[401068528,1767900649283,-500.0,0.00017973,2]
[401068529,1767900649292,-501.18870733,0.00017973,2]
[401068530,1767900649302,-500.0,0.00017973,2]
[401068531,1767900649311,-500.0,0.00017973,2]
[401068532,1767900649321,-500.0,0.00017973,2]
[401068533,1767900649331,-500.0,0.00017973,2]
[401068534,1767900649340,-385.16009683,0.00017973,2]
[401068535,1767900649349,-500.0,0.00017973,2]
[401068536,1767900649358,-500.0,0.00017973,2]
[401068537,1767900649367,-500.0,0.00017973,2]
[401068538,1767900649377,-500.0,0.00017973,2]
[401068539,1767900649386,-160.81509317,0.00017973,2]
[401068540,1767900649396,-2343.95996272,0.00017973,2]
[401068541,1767900649405,-1411.0,0.00017974,2]
[401068542,1767900649415,-500.0,0.0001799,2]
[401068543,1767900649425,-500.0,0.0001799,2]
[401068544,1767900649435,-500.0,0.0001799,2]
[401068545,1767900649444,-500.0,0.0001799,2]
[401068546,1767900649454,-568.35,0.0001799,2]
[401068547,1767900649463,-568.35,0.0001799,2]
[401068548,1767900649473,-505.03291198,0.0001799,2]
[401068549,1767900649482,-1000.0,0.00017991,2]
[401068550,1767900649492,-150.0,0.00017999,2]
[401068551,1767900649507,-300.0,0.00017999,2]
[401068552,1767900649517,-300.0,0.00017999,2]
[401068553,1767900649527,-585.83,0.00017999,2]
[401068554,1767900649536,-585.83,0.00017999,2]
[401068555,1767900649545,-585.83,0.00017999,2]
[401068556,1767900649554,-585.83,0.00017999,2]
[401068557,1767900649564,-585.83,0.00017999,2]
[401068558,1767900649573,-585.83,0.00017999,2]
[401068559,1767900649583,-585.83,0.00017999,2]
[401068560,1767900649594,-585.83,0.00017999,2]
[401068561,1767900649604,-585.83,0.00017999,2]
[401068562,1767900649614,-585.83,0.00017999,2]
[401068563,1767900649624,-585.83,0.00017999,2]
[401068564,1767900649635,-585.83,0.00017999,2]
[401068565,1767900649645,-585.83,0.00017999,2]
[401068566,1767900649654,-585.83,0.00017999,2]
[401068567,1767900649664,-585.98722753,0.00017999,2]
[401068568,1767900649673,-500.0,0.00017999,2]
[401068569,1767900649682,-500.0,0.00017999,2]
[401068570,1767900649691,-500.0,0.00017999,2]
[401068571,1767900649701,-500.0,0.00017999,2]
[401068572,1767900649710,-500.0,0.00017999,2]
[401068573,1767900649719,-500.0,0.00017999,2]
[401068574,1767900649729,-500.0,0.00017999,2]
[401068575,1767900649738,-500.0,0.00017999,2]
[401068576,1767900649747,-500.0,0.00017999,2]
[401068577,1767900649758,-564.92009029,0.00017999,2]
[401068578,1767900649767,-500.0,0.00017999,2]
[401068579,1767900649776,-500.0,0.00017999,2]
[401068580,1767900649786,-446.86331983,0.00017999,2]
[401068581,1767900649795,-666.0,0.00017999,2]
[401068582,1767900649804,-300.0,0.00017999,2]
[401068583,1767900649813,-568.35,0.00017999,2]
[401068584,1767900649823,-568.35,0.00017999,2]
[401068585,1767900649832,-568.35,0.00017999,2]
[401068586,1767900649841,-568.35,0.00017999,2]
[401068587,1767900649850,-568.35,0.00017999,2]
[401068588,1767900649859,-568.35,0.00017999,2]
[401068589,1767900649867,-568.35,0.00017999,2]
[401068590,1767900649877,-568.35,0.00017999,2]
[401068591,1767900649888,-568.35,0.00017999,2]
[401068592,1767900649898,-568.35,0.00017999,2]
[401068593,1767900649908,-568.35,0.00017999,2]
[401068594,1767900649918,-568.35,0.00017999,2]
[401068595,1767900649927,-568.35,0.00017999,2]
[401068596,1767900649936,-568.35,0.00017999,2]
[401068597,1767900649945,-568.35,0.00017999,2]
[401068598,1767900649955,-568.4013734,0.00017999,2]
[401068599,1767900649964,-1093.33,0.00017999,2]
[401068600,1767900649973,-1093.33,0.00017999,2]
[401068601,1767900649982,-1093.33,0.00017999,2]
[401068602,1767900649992,-1093.33,0.00017999,2]
[401068603,1767900650001,-1093.33,0.00017999,2]
[401068604,1767900650010,-1093.33,0.00017999,2]
[401068605,1767900650019,-1093.33,0.00017999,2]
[401068606,1767900650028,-1093.33,0.00017999,2]
[401068607,1767900650038,-1093.33,0.00017999,2]
[401068608,1767900650047,-1093.33,0.00017999,2]
[401068609,1767900650055,-1093.33,0.00017999,2]
[401068610,1767900650065,-1093.33,0.00017999,2]
[401068611,1767900650074,-1093.3877512,0.00017999,2]
[401068612,1767900650083,-300.0,0.00017999,2]
[401068613,1767900650092,-300.0,0.00017999,2]
[401068614,1767900650101,-666.0,0.00017999,2]
[401068615,1767900650111,-300.0,0.00017999,2]
[401068616,1767900650120,-500.0,0.00017999,2]
[401068617,1767900650129,-500.0,0.00017999,2]
[401068618,1767900650138,-500.0,0.00017999,2]
[401068619,1767900650147,-500.0,0.00017999,2]
[401068620,1767900650156,-500.0,0.00017999,2]
[401068621,1767900650166,-500.0,0.00017999,2]
[401068622,1767900650175,-500.0,0.00017999,2]
[401068623,1767900650184,-500.0,0.00017999,2]
[401068624,1767900650192,-386.45682453,0.00017999,2]
[401068625,1767900650202,-500.0,0.00017999,2]
[401068626,1767900650211,-320.87822696,0.00017999,2]
[401068627,1767900650220,-500.0,0.00017999,2]
[401068628,1767900650229,-500.0,0.00017999,2]
[401068629,1767900650239,-409.51044567,0.00017999,2]
[401068630,1767900650248,-300.0,0.00017999,2]
[401068631,1767900650257,-11518.53087549,0.00017999,2]
[401068632,1767900650266,-300.0,0.00017999,2]
[401068633,1767900650275,-666.0,0.00017999,2]
[401068634,1767900650284,-300.0,0.00017999,2]
[401068635,1767900650294,-705.01,0.00017999,2]
[401068636,1767900650303,-705.01,0.00017999,2]
[401068637,1767900650314,-705.01,0.00017999,2]
[401068638,1767900650323,-705.01,0.00017999,2]
[401068639,1767900650334,-705.01,0.00017999,2]
[401068640,1767900650343,-705.01,0.00017999,2]
[401068641,1767900650352,-705.01,0.00017999,2]
[401068642,1767900650361,-705.01,0.00017999,2]
[401068643,1767900650370,-705.01,0.00017999,2]
[401068644,1767900650379,-705.01,0.00017999,2]
[401068645,1767900650388,-705.01,0.00017999,2]
[401068646,1767900650397,-705.01,0.00017999,2]
[401068647,1767900650407,-705.24085139,0.00017999,2]
[401068648,1767900650417,-5970.77362135,0.00017999,2]
[401068649,1767900650427,-233.29795827,0.00018,2]
[401068650,1767900650436,-1000.0,0.00018,2]
[401068651,1767900650446,-836.47750939,0.00018,2]
[401068652,1767900650456,-1254115.19467529,0.00018,2]
[401068653,1767900650993,-1402.59250029,0.00018,2]
[401068654,1767900651044,-184.61083841,0.00014291,2]
[401068655,1767900651053,-7659.72920905,0.00018,2]
[401068656,1767900652572,-151.0,0.00014352,2]
[401068657,1767900652584,-151.0,0.00014352,2]
[401068658,1767900652598,-500.0,0.00017982,2]
[401068659,1767900652609,-643.93,0.00018,2]
[401068660,1767900654176,-151.0,0.00014352,2]
[401068661,1767900654185,-186.24381303,0.000179,2]
[401068662,1767900654279,-25.63883638,0.000179,2]
[401068663,1767900654288,-620.93546362,0.00018,2]
[401068664,1767900654414,-153.47004269,0.00017687,2]
[401068665,1767900654429,-1687.23898088,0.00018,2]
[401068672,1767900764116,482.42688762,0.000226,120]
[401068676,1767900905502,169.0,0.00021899,120]
[401068678,1767901185408,170.0,0.000226,120]
[401068679,1767901340473,191.04,8.888e-05,2]
[401068688,1767901831816,-500.0,0.00010886,2]
[401068689,1767901831828,-250.0,0.00010962,2]
[401068690,1767901831840,-195.0,0.00011039,2]
[401068691,1767901831852,-195.0,0.00011054,2]
[401068692,1767901831863,-161.09375916,0.00011192,2]
[401068693,1767901831876,-150.0,0.00011193,2]
[401068694,1767901831887,-300.0,0.00011205,2]
[401068695,1767901831900,-300.0,0.00011267,2]
[401068696,1767901831912,-978.83,0.00011484,2]
[401068697,1767901831930,-1783.89937804,0.00011552,2]
[401068698,1767901831942,-1200.0,0.00011555,2]
[401068699,1767901831954,-300.0,0.00011555,2]
[401068700,1767901831966,-627.74,0.00011556,2]
[401068701,1767901831978,-500.0,0.00011556,2]
[401068702,1767901831991,-500.0,0.00011556,2]
[401068703,1767901832003,-500.0,0.00011556,2]
[401068704,1767901832016,-500.0,0.00011556,2]
[401068705,1767901832028,-344.26471226,0.00011556,2]
[401068706,1767901832040,-503.28319711,0.00011556,2]
[401068707,1767901832051,-231.40810775,0.00011556,2]
[401068708,1767901832064,-500.61421208,0.00011556,2]
[401068709,1767901832075,-500.0,0.00011556,2]
[401068711,1767901832087,-500.0,0.00011556,2]
[401068714,1767901832099,-155.15572809,0.00011556,2]
[401068717,1767901832110,-542.77065189,0.00011556,2]
[401068720,1767901832122,-500.0,0.00011556,2]
[401068723,1767901832134,-500.0,0.00011556,2]
[401068728,1767901832145,-500.0,0.00011556,2]
[401068731,1767901832157,-500.0,0.00011556,2]
[401068734,1767901832169,-500.0,0.00011556,2]
[401068739,1767901832181,-500.0,0.00011556,2]
[401068742,1767901832193,-500.0,0.00011556,2]
[401068745,1767901832204,-500.0,0.00011556,2]
[401068748,1767901832215,-500.0,0.00011556,2]
[401068752,1767901832227,-500.0,0.00011556,2]
[401068755,1767901832238,-332.18474046,0.00011556,2]
[401068757,1767901832253,-212.39456055,0.00011556,2]
[401068759,1767901832264,-500.0,0.00011556,2]
[401068762,1767901832276,-500.0,0.00011556,2]
[401068764,1767901832287,-500.0,0.00011556,2]
[401068766,1767901832298,-500.0,0.00011556,2]
[401068768,1767901832310,-500.0,0.00011556,2]
[401068770,1767901832321,-500.0,0.00011556,2]
[401068773,1767901832332,-500.0,0.00011556,2]
[401068775,1767901832343,-500.0,0.00011556,2]
[401068777,1767901832354,-500.0,0.00011556,2]
[401068779,1767901832366,-500.0,0.00011556,2]
[401068782,1767901832377,-498.99148565,0.00011556,2]
[401068783,1767901832388,-500.0,0.00011556,2]
[401068786,1767901832401,-500.0,0.00011556,2]
[401068788,1767901832412,-500.0,0.00011556,2]
[401068790,1767901832423,-500.0,0.00011556,2]
[401068792,1767901832435,-500.0,0.00011556,2]
[401068795,1767901832447,-500.0,0.00011556,2]
[401068797,1767901832457,-18.82761852,0.00011556,2]
[401068799,1767901832472,-481.17238148,0.00011556,2]
[401068802,1767901832483,-160.10904524,0.00011556,2]
[401068804,1767901832497,-339.89095476,0.00011556,2]
[401068806,1767901832508,-500.0,0.00011556,2]
[401068808,1767901832519,-500.0,0.00011556,2]
[401068810,1767901832531,-500.0,0.00011556,2]
[401068813,1767901832542,-500.0,0.00011556,2]
[401068815,1767901832554,-500.0,0.00011556,2]
[401068817,1767901832565,-500.0,0.00011556,2]
[401068819,1767901832578,-500.0,0.00011556,2]
[401068821,1767901832589,-500.0,0.00011556,2]
[401068823,1767901832600,-148.90904523,0.00011556,2]
[401068826,1767901832615,-351.09095477,0.00011556,2]
[401068828,1767901832628,-170.95695512,0.00011556,2]
[401068831,1767901832641,-164.8085599,0.00011556,2]
[401068833,1767901832652,-500.0,0.00011556,2]
[401068835,1767901832664,-500.0,0.00011556,2]
[401068837,1767901832676,-500.0,0.00011556,2]
[401068839,1767901832688,-500.0,0.00011556,2]
[401068842,1767901832698,-500.0,0.00011556,2]
[401068844,1767901832710,-500.0,0.00011556,2]
[401068846,1767901832722,-500.0,0.00011556,2]
[401068848,1767901832734,-500.0,0.00011556,2]
[401068851,1767901832745,-500.0,0.00011556,2]
[401068853,1767901832756,-500.0,0.00011556,2]
[401068855,1767901832767,-500.00000001,0.00011556,2]
[401068857,1767901832778,-500.0,0.00011556,2]
[401068858,1767901832788,-473.26906906,0.00011556,2]
[401068859,1767901832799,-500.0,0.00011556,2]
[401068860,1767901832810,-150.99,0.00011559,2]
[401068861,1767901832820,-5745.91465591,0.00011559,2]
[401068975,1767901834028,-4254.07534409,0.00011559,2]
[401068977,1767901834037,-4517.32,0.00011559,2]
[401068979,1767901834047,-309.60465591,0.00011559,2]
[401068981,1767901834058,-157.40534409,0.00011559,2]
[401068983,1767901834067,-500.0,0.0001156,2]
[401068985,1767901834076,-299.47986798,0.00011561,2]
[401068987,1767901834085,-500.0,0.00011561,2]
[401068989,1767901834094,-314.18301378,0.00011561,2]
[401068991,1767901834103,-500.0,0.00011561,2]
[401068993,1767901834112,-461.61858626,0.00011561,2]
[401068995,1767901834122,-462.43529594,0.00011561,2]
[401068997,1767901834131,-1219.52379571,0.00011562,2]
[401068999,1767901834140,-167.203,0.00011562,2]
[401069001,1767901834149,-1743.009,0.00011562,2]
[401069003,1767901834158,-557.37957028,0.00011564,2]
[401069005,1767901834167,-13072.17915066,0.00011632,2]
[401069007,1767901834177,-200.0,0.00011655,2]
[401069009,1767901834186,-151.0,0.00011655,2]
[401069011,1767901834194,-151.0,0.00011655,2]
[401069013,1767901834203,-133.36775284,0.00011655,2]
[401069026,1767901834314,-17.63224716,0.00011655,2]
[401069028,1767901834323,-151.0,0.00011655,2]
[401069030,1767901834332,-151.0,0.00011655,2]
[401069032,1767901834341,-151.0,0.00011655,2]
[401069034,1767901834350,-151.0,0.00011655,2]
[401069036,1767901834359,-151.0,0.00011655,2]
[401069037,1767901834367,-91.45224738,0.00011655,2]
[401069040,1767901834379,-59.54775262,0.00011655,2]
[401069042,1767901834389,-151.0,0.00011655,2]
[401069044,1767901834398,-151.0,0.00011655,2]
[401069046,1767901834408,-56.7007793,0.00011655,2]
[401069048,1767901834419,-94.2992207,0.00011655,2]
[401069050,1767901834429,-200.0,0.00011655,2]
[401069052,1767901834440,-500.0,0.00011655,2]
[401069054,1767901834450,-200.0,0.00011655,2]
[401069056,1767901834459,-201.68358385,0.00011661,2]
[401069058,1767901834470,-825.08633777,0.00011661,2]
[401069060,1767901834479,-627.74,0.0001183,2]